bitfinex-derivatives/quotes_SOLF0:USTF0_20260204
["timestamp","ask_amount","ask_price","bid_price","bid_amount"]
[1770236472220,3.69299703,93.972,93.922,3.94690825]
[1770236472419,3.69299703,93.989,93.922,3.94690825]
[1770236472615,3.69299703,94.019,93.922,3.94690825]
[1770236472821,9.5927,94.0,93.934,3.94690825]
[1770236473818,9.5927,94.0,93.936,3.94690825]
[1770236474027,3.69299703,94.019,93.936,3.94690825]
[1770236474422,3.69299703,94.019,93.943,3.94690825]
[1770236474821,3.69299703,94.009,93.943,3.94690825]
[1770236475922,9.5902,94.025,93.952,3.94690825]
[1770236476722,3.69299703,94.028,93.921,3.94690825]
[1770236477221,3.69299703,94.028,93.946,3.94690825]
[1770236478225,13.28429703,94.015,93.949,3.94690825]
[1770236478425,7.92956748,94.04,93.949,3.94690825]
[1770236478426,3.69299703,94.014,93.949,3.94690825]
[1770236479726,9.5919,94.008,93.949,3.94690825]
[1770236480029,3.69299703,94.014,93.949,3.94690825]
[1770236480222,3.69299703,94.014,93.885,149.4027]
[1770236480223,9.5884,94.043,93.981,3.94690825]
[1770236480420,7.92956748,94.08,93.981,3.94690825]
[1770236480421,3.69299703,94.042,93.981,3.94690825]
[1770236480925,3.69299703,94.042,93.984,3.94690825]
[1770236481133,3.69299703,94.061,93.984,3.94690825]
[1770236481425,3.69299703,94.099,93.997,3.94690825]
[1770236481625,3.69299703,94.099,94.001,3.94690825]
[1770236481931,3.69299703,94.099,94.032,3.94690825]
[1770236482131,3.69299703,94.129,94.032,3.94690825]
[1770236482528,3.69299703,94.096,94.001,3.94690825]
[1770236482925,9.5844,94.082,94.001,3.94690825]
[1770236483127,13.27739703,94.082,94.001,3.94690825]
[1770236483929,3.65042217,94.077,94.004,3.5831687]
[1770236484732,3.65042217,94.073,94.004,3.5831687]
[1770236485230,9.5858,94.068,94.004,3.5831687]
[1770236485430,3.65042217,94.067,94.004,3.5831687]
[1770236485634,3.65042217,94.067,93.961,3.5831687]
[1770236486127,3.65042217,94.067,93.983,3.5831687]
[1770236486826,3.65042217,94.054,93.983,3.5831687]
[1770236487234,3.65042217,94.089,93.983,3.5831687]
[1770236488833,3.65042217,94.078,93.996,3.5831687]
[1770236490134,3.65042217,94.076,94.004,3.5831687]
[1770236490831,3.65042217,94.076,94.006,3.5831687]
[1770236491032,3.65042217,94.094,94.006,3.5831687]
[1770236491428,3.65042217,94.094,94.018,3.5831687]
[1770236491730,3.65042217,94.136,94.021,3.5831687]
[1770236492036,3.65042217,94.128,94.051,3.5831687]
[1770236493340,9.5803,94.122,94.053,3.5831687]
[1770236493530,13.16456089,94.184,94.053,3.5831687]
[1770236493531,3.65042217,94.146,94.053,3.5831687]
[1770236493933,3.65042217,94.146,94.04,7.92956748]
[1770236493934,3.65042217,94.146,94.07,3.5831687]
[1770236494829,3.65042217,94.186,94.085,3.5831687]
[1770236495835,9.5749,94.176,94.101,9.5824]
[1770236496033,3.65042217,94.175,94.102,3.5831687]
[1770236496233,3.65042217,94.175,94.061,3.5831687]
[1770236496641,3.65042217,94.149,94.068,3.5831687]
[1770236497138,9.5776,94.148,94.08,9.5845]
[1770236497443,13.22802217,94.148,94.08,13.1676687]
[1770236497834,3.65042217,94.141,94.08,3.5831687]
[1770236498239,9.5788,94.137,94.08,3.5831687]
[1770236498443,13.22922217,94.137,94.08,3.5831687]
[1770236499040,3.65042217,94.131,94.059,3.5831687]
[1770236499536,3.65042217,94.131,94.031,3.5831687]
[1770236500947,9.5808,94.117,94.044,3.5831687]
[1770236501240,3.65042217,94.125,94.055,3.5831687]
[1770236502744,3.65042217,94.125,94.005,19.1844]
[1770236502745,3.65042217,94.169,94.071,3.5831687]
[1770236503048,3.65042217,94.189,94.091,3.5831687]
[1770236503243,3.65042217,94.189,94.09,7.93120651]
[1770236503244,9.5746,94.179,94.114,3.5831687]
[1770236504339,9.5754,94.171,94.114,3.5831687]
[1770236505353,9.5754,94.171,94.044,32.0]
[1770236505354,13.22682217,94.16,94.094,13.1661687]
[1770236505650,3.65042217,94.159,94.094,3.5831687]
[1770236505845,9.577,94.155,94.094,3.5831687]
[1770236506049,3.65042217,94.154,94.071,3.5831687]
[1770236506445,3.65042217,94.154,94.072,13.1685687]
[1770236506646,3.65042217,94.154,94.073,3.5831687]
[1770236507048,3.65042217,94.174,94.073,3.5831687]
[1770236508247,9.5787,94.138,94.073,3.5831687]
[1770236508749,13.22912217,94.138,94.073,3.5831687]
[1770236509145,9.5795,94.13,94.073,3.5831687]
[1770236511453,3.65042217,94.138,94.073,13.1683687]
[1770236511954,3.65042217,94.138,94.073,3.5831687]
[1770236512855,9.5797,94.128,94.073,3.5831687]
[1770236513354,3.65042217,94.138,94.073,3.5831687]
[1770236513355,9.5805,94.12,94.073,3.5831687]
[1770236513553,3.65042217,94.138,94.073,3.5831687]
[1770236513949,3.65042217,94.138,94.075,3.78258734]
[1770236514146,3.93436276,94.179,94.075,3.78258734]
[1770236514755,9.577,94.154,94.091,3.78258734]
[1770236514955,3.93436276,94.161,94.091,3.78258734]
[1770236515754,9.5774,94.151,94.094,9.5831]
[1770236517955,3.93436276,94.15,94.094,9.5831]
[1770236521459,3.81517486,94.148,94.054,3.94560643]
[1770236521667,3.81517486,94.109,94.012,3.94560643]
[1770236522161,9.5836,94.089,94.028,9.5898]
[1770236522360,9.5836,94.089,94.028,13.53540643]
[1770236523156,3.81517486,94.092,94.028,3.94560643]
[1770236523459,3.81517486,94.129,94.028,3.94560643]
[1770236524562,3.81517486,94.129,94.052,3.94560643]
[1770236525066,3.81517486,94.129,94.011,3.94560643]
[1770236525467,3.81517486,94.091,94.021,3.94560643]
[1770236525967,9.5836,94.09,94.023,9.5903]
[1770236526264,3.81517486,94.129,94.024,3.94560643]
[1770236526658,3.81517486,94.093,94.024,3.94560643]
[1770236527667,13.39897486,94.087,94.024,3.94560643]
[1770236527861,3.81517486,94.087,94.024,3.94560643]
[1770236528068,3.81517486,94.107,94.046,3.94560643]
[1770236528455,3.81517486,94.149,94.046,3.94560643]
[1770236528662,13.16456089,94.182,94.03,7.93120651]
[1770236528663,3.81517486,94.14,94.073,9.5852]
[1770236529064,3.81517486,94.14,94.074,3.94560643]
[1770236529563,3.81517486,94.159,94.074,3.94560643]
[1770236530166,3.81517486,94.143,94.074,3.94560643]
[1770236532264,3.81517486,94.143,94.077,3.94560643]
[1770236533168,3.81517486,94.143,94.091,9.5834]
[1770236533775,3.81517486,94.143,94.077,3.94560643]
[1770236534366,3.81517486,94.141,94.077,3.94560643]
[1770236535773,3.81517486,94.138,94.077,3.94560643]
[1770236536773,9.5789,94.136,94.077,3.94560643]
[1770236537169,9.5789,94.136,94.05,7.93120651]
[1770236537170,3.81517486,94.135,94.06,3.94560643]
[1770236537674,9.5804,94.122,94.06,13.53210643]
[1770236537874,3.81517486,94.135,94.061,3.94560643]
[1770236538272,9.5795,94.13,94.064,3.94560643]
[1770236539379,3.81517486,94.129,94.064,3.94560643]
[1770236540273,7.93120651,94.15,94.035,13.53470643]
[1770236540274,3.81517486,94.102,94.035,13.53470643]
[1770236540574,3.81517486,94.102,94.036,3.94560643]
[1770236541278,3.81517486,94.129,94.039,3.94560643]
[1770236541673,3.81517486,94.129,94.042,3.94560643]
[1770236542173,9.5778,94.147,94.076,3.94560643]
[1770236542372,3.81517486,94.146,94.058,3.94560643]
[1770236543772,9.5811,94.115,94.058,3.94560643]
[1770236543977,3.66478106,94.12,94.058,3.94560643]
[1770236544174,9.5816,94.11,94.039,3.83707186]
[1770236544978,3.66478106,94.118,94.049,3.83707186]
[1770236545380,3.66478106,94.162,94.049,3.83707186]
[1770236545575,3.66478106,94.136,94.067,3.83707186]
[1770236545778,13.16456089,94.176,94.067,3.83707186]
[1770236545779,3.66478106,94.155,94.067,3.83707186]
[1770236546273,3.66478106,94.155,94.07,3.83707186]
[1770236547180,7.93120651,94.17,94.07,3.83707186]
[1770236547181,9.5794,94.131,94.07,3.83707186]
[1770236547482,3.66478106,94.138,94.07,3.83707186]
[1770236548178,9.5789,94.136,94.073,3.83707186]
[1770236549380,9.5798,94.128,94.075,3.83707186]
[1770236549980,9.5798,94.128,94.078,3.83707186]
[1770236550180,9.5807,94.118,94.078,3.83707186]
[1770236551181,9.5815,94.111,94.061,3.83707186]
[1770236552486,3.66478106,94.122,94.061,3.83707186]
[1770236552487,9.5823,94.103,94.061,3.83707186]
[1770236553587,3.66478106,94.122,94.061,3.83707186]
[1770236553588,9.5833,94.093,94.061,3.83707186]
[1770236553886,3.66478106,94.122,94.042,3.83707186]
[1770236554785,9.5824,94.102,94.052,3.83707186]
[1770236555487,9.5833,94.093,94.052,3.83707186]
[1770236555689,3.66478106,94.106,94.052,3.83707186]
[1770236556584,9.5814,94.111,94.053,3.83707186]
[1770236556984,3.66478106,94.12,94.053,3.83707186]
[1770236557583,13.24608106,94.112,94.055,3.83707186]
[1770236557780,3.66478106,94.111,94.055,3.83707186]
[1770236558685,3.66478106,94.111,94.033,9.82101235]
[1770236558991,3.66478106,94.073,94.019,3.83707186]
[1770236559883,3.66478106,94.073,94.002,3.83707186]
[1770236560485,3.66478106,94.07,94.002,3.83707186]
[1770236560982,3.66478106,94.07,94.005,3.83707186]
[1770236561781,3.66478106,94.07,94.02,3.83707186]
[1770236562091,3.66478106,94.089,94.02,3.83707186]
[1770236562687,3.66478106,94.089,94.023,9.5903]
[1770236563092,3.66478106,94.089,94.023,13.42737186]
[1770236564695,3.66478106,94.087,94.023,13.42737186]
[1770236565083,3.66478106,94.087,94.004,3.83707186]
[1770236565286,3.66478106,94.068,94.004,3.83707186]
[1770236565492,3.66478106,94.068,94.006,3.83707186]
[1770236565897,9.5859,94.067,94.006,3.83707186]
[1770236566397,9.5868,94.059,94.006,3.83707186]
[1770236567397,3.66478106,94.066,94.006,3.83707186]
[1770236568692,3.66478106,94.075,94.01,3.83707186]
[1770236569402,3.66478106,94.073,94.01,3.83707186]
[1770236570103,3.66478106,94.069,94.01,3.83707186]
[1770236571198,3.66478106,94.066,94.01,3.83707186]
[1770236571402,3.66478106,94.066,93.96,7.93810969]
[1770236571403,3.66478106,94.066,93.994,3.83707186]
[1770236571803,3.66478106,94.059,93.994,3.83707186]
[1770236572401,3.66478106,94.059,93.996,3.83707186]
[1770236573305,3.66478106,94.059,93.999,3.83707186]
[1770236575408,3.67202608,94.054,93.999,3.83707186]
[1770236575604,3.67202608,94.054,93.98,3.75300368]
[1770236575812,9.5893,94.034,93.98,3.75300368]
[1770236576110,3.67202608,94.033,93.964,3.75300368]
[1770236577799,3.67202608,94.033,93.968,3.75300368]
[1770236578600,3.67202608,94.033,93.972,3.75300368]
[1770236578805,3.91341465,94.048,93.972,3.75300368]
[1770236579210,3.91341465,94.048,93.98,3.62844657]
[1770236579610,19.7442582,94.119,93.98,3.62844657]
[1770236579611,3.91341465,94.038,93.98,3.62844657]
[1770236580711,3.91341465,94.054,93.99,3.62844657]
[1770236581403,3.91341465,94.051,93.99,3.62844657]
[1770236582008,3.91341465,94.04,93.959,3.62844657]
[1770236582804,3.91341465,94.04,93.943,3.62844657]
[1770236582805,3.91341465,94.021,93.943,3.62844657]
[1770236583008,3.91341465,94.019,93.926,3.62844657]
[1770236583817,3.91341465,94.019,93.877,32.0]
[1770236583818,3.91341465,94.011,93.945,3.62844657]
[1770236584614,3.91341465,94.008,93.946,9.5982]
[1770236585515,9.5921,94.007,93.946,9.5982]
[1770236585714,3.91341465,94.006,93.945,3.62844657]
[1770236585909,3.91341465,94.006,93.927,3.62844657]
[1770236586811,9.5941,93.987,93.928,3.62844657]
[1770236587318,3.91341465,93.99,93.928,3.62844657]
[1770236587918,3.91341465,93.99,93.931,3.62844657]
[1770236589019,3.91341465,93.99,93.933,3.62844657]
[1770236590118,3.91341465,93.99,93.925,3.62844657]
[1770236590119,9.5946,93.982,93.925,3.62844657]
[1770236590315,3.91341465,94.029,93.925,3.62844657]
[1770236590821,3.91341465,94.006,93.943,3.62844657]
[1770236591320,3.91341465,94.049,93.943,3.62844657]
[1770236591717,9.591,94.018,93.962,3.62844657]
[1770236592218,3.91341465,94.023,93.964,3.62844657]
[1770236592819,149.0821,94.088,93.942,3.62844657]
[1770236592820,3.91341465,94.013,93.942,3.62844657]
[1770236593318,9.5916,94.011,93.953,3.62844657]
[1770236593513,13.50501465,94.011,93.953,3.62844657]
[1770236594523,3.91341465,94.007,93.953,3.62844657]
[1770236595126,3.91341465,94.007,93.956,3.62844657]
[1770236595324,7.93810969,94.05,93.956,3.62844657]
[1770236595325,3.91341465,94.026,93.956,3.62844657]
[1770236595727,3.91341465,94.024,93.966,13.22454657]
[1770236597928,3.91341465,94.021,93.966,3.62844657]
[1770236600030,3.91341465,94.021,93.967,9.596]
[1770236600228,3.91341465,94.036,93.968,3.62844657]
[1770236601727,9.5899,94.028,93.969,9.5958]
[1770236601920,9.5899,94.028,93.97,3.62844657]
[1770236603727,3.91341465,94.024,93.955,3.62844657]
[1770236605225,3.91341465,94.024,93.97,3.54643244]
[1770236606430,3.91341465,94.024,93.972,3.54643244]
[1770236608734,9.5907,94.02,93.972,3.54643244]
[1770236609834,3.65247927,94.017,93.972,3.54643244]
[1770236610428,3.65247927,94.017,93.953,3.54643244]
[1770236611435,3.65247927,94.014,93.955,3.54643244]
[1770236612239,3.65247927,94.03,93.96,3.54643244]
[1770236613745,9.5899,94.028,93.968,3.54643244]
[1770236613948,3.65247927,94.045,93.968,3.54643244]
[1770236614139,3.65247927,94.045,93.971,3.54643244]
[1770236614339,3.65247927,94.045,93.996,3.54643244]
[1770236614735,3.65247927,94.033,93.971,3.54643244]
[1770236615841,3.65247927,94.03,93.971,3.54643244]
[1770236616145,3.65247927,94.069,93.974,3.54643244]
[1770236616336,3.65247927,94.069,93.981,3.54643244]
[1770236617548,3.65247927,94.069,93.988,3.54643244]
[1770236618741,3.65247927,94.067,94.002,13.13883244]
[1770236618943,3.65247927,94.067,94.002,3.54643244]
[1770236619140,3.65247927,94.067,93.982,3.54643244]
[1770236619442,3.65247927,94.061,93.995,3.54643244]
[1770236620746,3.65247927,94.061,94.003,9.5923]
[1770236621046,3.65247927,94.061,94.003,13.13873244]
[1770236621241,7.94428645,94.1,94.003,3.54643244]
[1770236621242,3.65247927,94.059,94.003,3.54643244]
[1770236621448,3.65247927,94.059,93.987,3.54643244]
[1770236621843,3.65247927,94.059,93.989,3.54643244]
[1770236622748,13.23957927,94.055,93.991,3.54643244]
[1770236623047,3.65247927,94.054,93.991,3.54643244]
[1770236623445,3.65247927,94.052,93.994,9.5932]
[1770236623743,3.65247927,94.052,93.995,3.54643244]
[1770236624651,3.65247927,94.046,93.995,3.54643244]
[1770236625754,3.65247927,94.044,93.977,3.54643244]
[1770236625954,3.65247927,94.039,93.944,3.54643244]
[1770236626345,3.65247927,93.999,93.928,3.54643244]
[1770236627053,7.94428645,94.02,93.928,3.54643244]
[1770236627054,3.65247927,93.989,93.928,3.54643244]
[1770236627651,3.65247927,93.986,93.928,3.54643244]
[1770236628050,9.5955,93.973,93.928,3.54643244]
[1770236628351,3.65247927,93.986,93.928,3.54643244]
[1770236631753,3.65247927,93.986,93.93,3.54643244]
[1770236632249,3.65247927,93.986,93.915,9.83133107]
[1770236632250,3.65247927,93.986,93.917,9.6012]
[1770236632452,3.65247927,93.986,93.915,3.54643244]
[1770236632849,3.65247927,93.979,93.896,3.54643244]
[1770236633050,3.65247927,93.951,93.88,3.54643244]
[1770236634152,3.65247927,93.951,93.867,9.90377351]
[1770236634153,3.65247927,93.951,93.893,3.82282832]
[1770236637653,3.65247927,93.951,93.877,3.82282832]
[1770236637852,3.6431825,93.939,93.847,3.82282832]
[1770236638347,3.6431825,93.917,93.847,3.82282832]
[1770236639553,3.6431825,93.917,93.851,3.76231313]
[1770236640155,3.6431825,93.917,93.82,7.94428645]
[1770236640156,3.6431825,93.917,93.863,13.36891313]
[1770236640856,3.6431825,93.917,93.863,3.76231313]
[1770236641254,3.6431825,93.917,93.821,3.76231313]
[1770236641556,3.76442005,93.937,93.853,3.76231313]
[1770236642259,3.76442005,93.937,93.824,9.90377351]
[1770236642260,3.76442005,93.92,93.844,3.76231313]
[1770236642560,3.76442005,93.919,93.844,3.76231313]
[1770236643658,9.6037,93.893,93.844,3.76231313]
[1770236643959,3.76442005,93.892,93.803,3.76231313]
[1770236644657,7.94428645,93.9,93.803,3.76231313]
[1770236644658,3.76442005,93.872,93.803,3.76231313]
[1770236645358,3.76442005,93.871,93.805,3.76231313]
[1770236645860,3.76442005,93.861,93.791,13.37641313]
[1770236646059,3.76442005,93.861,93.792,3.76231313]
[1770236647852,3.76442005,93.861,93.796,3.76231313]
[1770236648255,3.76442005,93.861,93.797,9.6134]
[1770236648451,3.76442005,93.861,93.798,3.76231313]
[1770236649261,7.94428645,93.88,93.774,1.85418537]
[1770236649262,3.76442005,93.858,93.782,3.76231313]
[1770236650755,3.76442005,93.855,93.782,3.76231313]
[1770236651850,3.76442005,93.855,93.802,9.6129]
[1770236653360,3.76442005,93.855,93.813,9.6118]
[1770236653560,3.76442005,93.855,93.802,3.76231313]
[1770236655166,3.76442005,93.855,93.755,3.76231313]
[1770236655858,3.76442005,93.872,93.805,3.76231313]
[1770236656063,3.76442005,93.889,93.805,3.76231313]
[1770236656654,3.76442005,93.905,93.837,3.76231313]
[1770236657556,7.94428645,93.93,93.837,3.76231313]
[1770236657557,9.6044,93.886,93.837,3.76231313]
[1770236658060,3.76442005,93.89,93.816,3.76231313]
[1770236659166,3.76442005,93.868,93.816,3.76231313]
[1770236660365,13.37072005,93.867,93.816,3.76231313]
[1770236660865,3.76442005,93.862,93.8,3.76231313]
[1770236662054,3.76442005,93.862,93.803,3.76231313]
[1770236662257,3.76442005,93.878,93.803,3.76231313]
[1770236663868,3.62595954,93.868,93.806,3.67286419]
[1770236664762,3.62595954,93.885,93.81,3.67286419]
[1770236665465,3.62595954,93.885,93.832,3.67286419]
[1770236665860,3.62595954,93.885,93.791,3.67286419]
[1770236666166,3.62595954,93.885,93.77,7.94428645]
[1770236666167,9.6066,93.865,93.808,3.67286419]
[1770236666567,3.62595954,93.885,93.808,3.67286419]
[1770236666766,9.6048,93.883,93.828,3.67286419]
[1770236667363,3.62595954,93.88,93.828,3.67286419]
[1770236668863,3.62595954,93.868,93.791,3.67286419]
[1770236669466,3.62595954,93.84,93.774,3.67286419]
[1770236670861,3.62595954,93.824,93.753,3.67286419]
[1770236671468,3.62595954,93.824,93.765,3.67286419]
[1770236671869,3.62595954,93.824,93.766,9.6166]
[1770236672070,3.62595954,93.849,93.767,3.67286419]
[1770236672770,3.62595954,93.849,93.786,3.67286419]
[1770236674670,9.609,93.841,93.786,3.67286419]
[1770236674968,3.62595954,93.84,93.786,3.67286419]
[1770236675872,13.23515954,93.839,93.786,3.67286419]
[1770236676074,3.62595954,93.838,93.786,3.67286419]
[1770236677674,9.6095,93.836,93.786,3.67286419]
[1770236677977,13.23836057,93.895,93.734,1.85513922]
[1770236677978,3.62595954,93.835,93.77,3.67286419]
[1770236678374,3.62595954,93.824,93.77,3.67286419]
[1770236678672,3.62595954,93.824,93.759,9.6174]
[1770236679780,3.62595954,93.822,93.759,9.6174]
[1770236680374,19.2113,93.874,93.754,3.67286419]
[1770236680375,3.62595954,93.818,93.754,3.67286419]
[1770236681280,3.62595954,93.818,93.757,3.67286419]
[1770236682670,3.62595954,93.818,93.761,9.6171]
[1770236683277,13.23735954,93.818,93.761,9.6171]
[1770236683478,13.23735954,93.818,93.761,13.28996419]
[1770236683878,3.62595954,93.817,93.761,13.28996419]
[1770236685682,3.62595954,93.817,93.768,9.6164]
[1770236686081,3.62595954,93.817,93.761,3.67286419]
[1770236687383,3.62595954,93.817,93.764,3.67286419]
[1770236690581,3.62595954,93.817,93.765,9.6167]
[1770236691988,2.98163711,93.81,93.764,3.67286419]
[1770236692193,6.60759665,93.81,93.764,3.67286419]
[1770236692396,3.62595954,93.789,93.741,3.67286419]
[1770236693798,3.62595954,93.789,93.742,9.6191]
[1770236694500,3.62595954,93.789,93.741,3.67286419]
[1770236695594,3.68419184,93.787,93.726,3.61321292]
[1770236695999,9.6155,93.777,93.726,3.61321292]
[1770236696197,13.29969184,93.777,93.726,3.61321292]
[1770236697296,3.68419184,93.776,93.726,3.61321292]
[1770236697601,3.68419184,93.776,93.674,13.07346121]
[1770236697602,3.68419184,93.774,93.712,3.61321292]
[1770236697992,3.68419184,93.756,93.697,3.61321292]
[1770236698790,3.68419184,93.756,93.699,3.69717163]
[1770236699399,3.68419184,93.756,93.7,3.69717163]
[1770236700303,3.79503474,93.778,93.702,3.69717163]
[1770236700806,3.79503474,93.756,93.687,3.69717163]
[1770236701302,3.79503474,93.771,93.712,3.69717163]
[1770236701900,3.79503474,93.787,93.732,9.6201]
[1770236702206,3.79503474,93.787,93.733,3.69717163]
[1770236703099,3.79503474,93.783,93.716,3.69717163]
[1770236703292,3.79503474,93.783,93.719,9.6214]
[1770236703497,3.79503474,93.783,93.72,3.69717163]
[1770236703900,3.79503474,93.783,93.729,9.6203]
[1770236704507,3.79503474,93.783,93.72,3.69717163]
[1770236704806,3.79503474,93.783,93.728,13.31767163]
[1770236705305,3.79503474,93.783,93.681,9.89608841]
[1770236705306,3.65671362,93.78,93.683,3.74936961]
[1770236705798,3.65671362,93.757,93.683,3.74936961]
[1770236706305,3.65671362,93.746,93.683,3.74936961]
[1770236706899,3.65671362,93.744,93.683,3.74936961]
[1770236707807,3.65671362,93.742,93.683,3.74936961]
[1770236708605,9.6193,93.74,93.683,3.74936961]
[1770236708797,3.65671362,93.739,93.683,3.74936961]
[1770236709210,3.65671362,93.733,93.661,3.74936961]
[1770236709902,3.65671362,93.729,93.661,3.74936961]
[1770236710502,3.65671362,93.729,93.664,3.74936961]
[1770236710912,3.65671362,93.729,93.68,3.74936961]
[1770236711310,3.65671362,93.746,93.68,3.74936961]
[1770236711904,3.65671362,93.732,93.61,17.88805937]
[1770236712108,3.65671362,93.732,93.64,3.74936961]
[1770236712603,3.65671362,93.722,93.653,3.74936961]
[1770236713311,3.65671362,93.722,93.656,3.74936961]
[1770236713905,3.65671362,93.72,93.656,3.74936961]
[1770236714911,3.65671362,93.71,93.656,3.74936961]
[1770236715112,3.65671362,93.71,93.64,3.74936961]
[1770236715504,3.65671362,93.699,93.64,3.74936961]
[1770236716801,13.28081362,93.694,93.64,3.74936961]
[1770236717306,13.28171362,93.685,93.623,3.74936961]
[1770236717512,159.54666894,93.749,93.607,3.74936961]
[1770236717513,3.65671362,93.684,93.607,3.74936961]
[1770236717813,9.6263,93.672,93.607,3.74936961]
[1770236718112,3.65671362,93.671,93.607,3.74936961]
[1770236718303,3.65671362,93.665,93.607,3.74936961]
[1770236719005,7.99197096,93.69,93.607,3.74936961]
[1770236719006,13.28391362,93.664,93.607,3.74936961]
[1770236719408,3.65671362,93.664,93.607,3.74936961]
[1770236720511,9.628,93.656,93.607,3.74936961]
[1770236720714,13.28471362,93.656,93.607,3.74936961]
[1770236721108,3.65671362,93.645,93.574,3.74936961]
[1770236723011,9.6304,93.632,93.574,3.74936961]
[1770236723213,3.65671362,93.645,93.574,3.74936961]
[1770236723612,3.65671362,93.634,93.574,3.74936961]
[1770236724015,9.6319,93.618,93.574,3.74936961]
[1770236724316,3.65671362,93.634,93.574,3.74936961]
[1770236725016,3.74621245,93.652,93.574,3.74936961]
[1770236725512,9.6285,93.651,93.576,3.83173185]
[1770236725717,3.74621245,93.652,93.576,3.83173185]
[1770236726215,9.6294,93.642,93.576,3.83173185]
[1770236726417,3.74621245,93.642,93.576,3.83173185]
[1770236727414,9.6305,93.631,93.576,3.83173185]
[1770236728211,9.6315,93.622,93.576,3.83173185]
[1770236728410,3.74621245,93.642,93.576,3.83173185]
[1770236729316,9.6299,93.638,93.576,3.83173185]
[1770236729907,9.6307,93.629,93.576,3.83173185]
[1770236730108,3.74621245,93.642,93.576,3.83173185]
[1770236730517,9.6322,93.615,93.576,3.83173185]
[1770236731116,9.6312,93.625,93.576,3.83173185]
[1770236731510,3.74621245,93.627,93.576,3.83173185]
[1770236731715,3.74621245,93.627,93.54,7.99197096]
[1770236731716,9.6328,93.609,93.541,3.83173185]
[1770236731914,3.74621245,93.612,93.541,3.83173185]
[1770236732814,9.6345,93.593,93.541,3.83173185]
[1770236733223,3.74621245,93.596,93.541,3.83173185]
[1770236733818,9.6355,93.583,93.541,3.83173185]
[1770236734513,3.74621245,93.617,93.541,3.83173185]
[1770236735208,9.6346,93.592,93.541,3.83173185]
[1770236735410,3.74621245,93.617,93.541,3.83173185]
[1770236736116,3.74621245,93.617,93.52,7.99197096]
[1770236736117,3.74621245,93.633,93.544,3.83173185]
[1770236736517,9.6316,93.621,93.552,9.6386]
[1770236736717,9.6316,93.621,93.553,3.83173185]
[1770236737423,9.6327,93.611,93.553,3.83173185]
[1770236737826,3.74621245,93.633,93.553,3.83173185]
[1770236738222,9.6317,93.62,93.555,3.83173185]
[1770236738726,9.6306,93.631,93.557,3.83173185]
[1770236739419,9.6314,93.623,93.557,3.83173185]
[1770236740823,9.6322,93.615,93.557,3.83173185]
[1770236742020,9.6331,93.606,93.557,3.83173185]
[1770236742528,9.634,93.598,93.557,3.83173185]
[1770236743325,3.74621245,93.618,93.524,3.83173185]
[1770236743525,3.74621245,93.616,93.524,3.83173185]
[1770236743728,3.74621245,93.609,93.524,3.83173185]
[1770236743921,8.0181853,93.61,93.524,3.83173185]
[1770236743922,9.6374,93.565,93.524,3.83173185]
[1770236744224,3.74621245,93.583,93.508,3.83173185]
[1770236744626,3.74621245,93.56,93.491,3.83173185]
[1770236744826,3.74621245,93.56,93.473,3.83173185]
[1770236745025,8.0181853,93.55,93.507,46.87591937]
[1770236745225,19.2709,93.584,93.507,46.87591937]
[1770236745226,8.0181853,93.57,93.507,46.87591937]
[1770236745422,9.6405,93.535,93.507,46.87591937]
[1770236745729,8.0181853,93.57,93.507,46.87591937]
[1770236747326,8.0181853,93.59,93.507,46.87591937]
[1770236747627,9.6391,93.548,93.507,46.87591937]
[1770236749231,9.6381,93.558,93.507,46.87591937]
[1770236749419,8.0181853,93.59,93.508,39.87858026]
[1770236749628,162.97081727,93.659,93.508,39.87858026]
[1770236749629,8.0181853,93.61,93.508,39.87858026]
[1770236749819,8.0181853,93.63,93.508,39.87858026]
[1770236750732,40.6386,93.644,93.521,39.87858303]
[1770236751819,9.6336,93.601,93.523,39.88656418]
[1770236752027,8.0181853,93.63,93.523,39.88656418]
[1770236753129,40.6386,93.644,93.523,39.88656418]
[1770236753327,40.6386,93.644,93.525,39.89776232]
[1770236753328,21.38,93.644,93.525,39.89776232]
[1770236753528,8.0181853,93.65,93.525,39.89776232]
[1770236754134,9.6324,93.613,93.534,39.8974545]
[1770236755534,9.6334,93.604,93.534,39.8974545]
[1770236755731,8.0181853,93.63,93.534,39.8974545]
[1770236756129,9.6344,93.593,93.534,39.8974545]
[1770236757338,9.6354,93.584,93.534,39.8974545]
[1770236757735,9.6344,93.594,93.534,39.8974545]
[1770236758337,9.6333,93.604,93.534,39.8974545]
[1770236758935,9.6343,93.595,93.534,39.8974545]
[1770236759533,9.6331,93.606,93.534,39.8974545]
[1770236760039,8.0181853,93.63,93.534,39.8974545]
[1770236760635,9.634,93.597,93.534,39.8974545]
[1770236762143,9.6331,93.606,93.534,39.8974545]
[1770236762331,8.0181853,93.63,93.534,39.8974545]
[1770236763742,9.6341,93.597,93.534,39.8974545]
[1770236764042,19.2536,93.668,93.541,39.9150683]
[1770236764638,9.6315,93.622,93.547,39.9150683]